[Event "Suryabinayak Municipality Open B 2024"]
[Site "Bhaktapur"]
[Date "2024.12.06"]
[Round "8.1"]
[White "Silwal, Purushottam"]
[Black "Kusatha, Niken"]
[Result "1/2-1/2"]
[ECO "C42"]
[WhiteElo "2058"]
[BlackElo "1964"]
[Annotator "RC"]
[PlyCount "99"]
[EventDate "2024.12.02"]
[EventCountry "NEP"]
[SourceTitle "playchess.com"]
[Source "ChessBase"]
[SourceQuality "1"]
[TimeControl "5400+30"]

1. e4 {[%emt 0:00:21]} e5 {[%emt 1:31:00]} 2. Nf3 {[%emt 0:00:53]} Nf6 {[%emt 0:00:00]} 3. Nxe5 {[%emt 0:00:17]} d6 {[%emt 0:00:00]} 4. Nf3 {[%emt 0:00:04]} Nxe4 {[%emt 0:00:00]} 5. Nc3 {[%emt 0:00:07]} Nf6 {[%emt 0:00:00]} 6. d4 {[%emt 0:00:18]} Be7 {[%emt 0:00:00]} 7. Bd3 {[%emt 0:05:03]} O-O {[%emt 0:00:00]} 8. h3 {[%emt 0:00:03]} d5 {[%emt 0:00:00]} 9. O-O {[%emt 0:00:22]} Bd6 {[%emt 0:00:00]} 10. Bg5 {[%emt 0:00:50]} c6 {[%emt 0:00:00]} 11. Re1 {[%emt 0:00:16]} h6 {[%emt 0:00:00]} 12. Bh4 {[%emt 0:00:44]} Na6 {[%emt 0:00:00]} 13. Bxa6 {[%emt 0:06:25]} bxa6 {[%emt 0:00:00]} 14. Ne5 {[%emt 0:00:08]} g5 {[%emt 0:00:00]} 15. Bg3 {[%emt 0:01:03]} Bxe5 {[%emt 0:00:00]} 16. Bxe5 {[%emt 0:04:15]} Ne8 {[%emt 0:00:00]} 17. Qf3 {[%emt 0:05:58]} f6 {[%emt 0:00:00]} 18. Bg3 {[%emt 0:00:22]} Ng7 {[%emt 0:00:00]} 19. Na4 {[%emt 0:02:10]} Nf5 {[%emt 0:00:00]} 20. c3 {[%emt 0:01:07]} Nxg3 {[%emt 0:00:00]} 21. fxg3 {[%emt 0:09:36]} Rb8 {[%emt 0:00:00]} 22. Re2 {[%emt 0:01:10]} Rb7 {[%emt 0:00:00]} 23. Rae1 {[%emt 0:00:17]} Rbf7 {[%emt 0:00:00]} 24. Nc5 {[%emt 0:00:23]} Qd6 {[%emt 0:00:00]} 25. Qd3 {[%emt 0:07:36]} Kg7 {[%emt 0:00:00]} 26. Ne6+ {[%emt 0:06:56]} Bxe6 {[%emt 0:00:00]} 27. Rxe6 {[%emt 0:00:09]} Qc7 {[%emt 0:00:00]} 28. Kh2 {[%emt 0:00:44]} h5 {[%emt 0:00:00]} 29. Qxa6 {[%emt 0:01:54]} h4 {[%emt 0:00:00]} 30. R1e3 {[%emt 0:01:42]} hxg3+ {[%emt 0:00:00]} 31. Rxg3 {[%emt 0:00:15]} Rc8 {[%emt 0:00:00]} 32. b4 {[%emt 0:03:40]} Kf8 {[%emt 0:00:00]} 33. a4 {[%emt 0:01:18]} Kg7 {[%emt 0:00:00]} 34. a5 {[%emt 0:00:08]} Kf8 {[%emt 0:00:00]} 35. Qd3 {[%emt 0:01:06]} Re8 {[%emt 0:00:00]} 36. Rxe8+ {[%emt 0:00:08]} Kxe8 {[%emt 0:00:00]} 37. Kg1 {[%emt 0:00:07]} Kf8 {[%emt 0:00:00]} 38. Rf3 {[%emt 0:00:49]} Kg7 {[%emt 0:00:00]} 39. Qf5 {[%emt 0:00:56]} Qd6 {[%emt 0:00:00]} 40. Re3 {[%emt 0:10:00]} Re7 {[%emt 0:00:00]} 41. Rxe7+ {[%emt 0:02:23]} Qxe7 {[%emt 0:00:00]} 42. Kf2 {[%emt 0:00:11]} Qe8 {[%emt 0:00:00]} 43. g3 {[%emt 0:15:48]} Qe7 {[%emt 0:00:00]} 44. a6 {[%emt 0:03:08]} Qe8 {[%emt 0:00:00]} 45. b5 {[%emt 0:01:50]} cxb5 {[%emt 0:00:00]} 46. Qxd5 {[%emt 0:01:05]} Kg6 {[%emt 0:00:00]} 47. Qb7 {[%emt 0:02:22]} Kh6 {[%emt 0:00:00]} 48. Qf3 {[%emt 0:03:18]} Qe6 {[%emt 0:00:00]} 49. h4 {[%emt 0:02:32]} Qxa6 {[%emt 0:03:30]} 50. hxg5+ {[%emt 0:00:07]} 1/2-1/2

[Event "Suryabinayak Municipality Open B 2024"]
[Site "Bhaktapur"]
[Date "2024.12.06"]
[Round "8.2"]
[White "Lama, Milan"]
[Black "Phuyal, Aashish"]
[Result "1/2-1/2"]
[ECO "C01"]
[WhiteElo "1997"]
[BlackElo "1907"]
[Annotator "RC"]
[PlyCount "32"]
[EventDate "2024.12.02"]
[EventCountry "NEP"]
[SourceTitle "playchess.com"]
[Source "ChessBase"]
[SourceQuality "1"]
[TimeControl "5400+30"]

1. e4 e6 2. d4 {[%emt 0:01:00]} d5 {[%emt 0:01:00]} 3. exd5 {[%emt 0:00:30]} exd5 {[%emt 0:00:00]} 4. Bd3 {[%emt 0:00:00]} Bd6 {[%emt 0:00:00]} 5. Nf3 {[%emt 0:00:00]} Nf6 {[%emt 0:00:00]} 6. h3 {[%emt 1:32:00]} Qe7+ 7. Be3 {[%emt 0:00:00]} Bf4 {[%emt 0:00:25]} 8. Qe2 {[%emt 0:00:00]} Bxe3 {[%emt 0:00:12]} 9. Qxe3 {[%emt 0:00:00]} Qxe3+ {[%emt 0:00:07]} 10. fxe3 {[%emt 0:00:00]} Be6 {[%emt 0:00:20]} 11. Nbd2 {[%emt 0:00:00]} O-O {[%emt 0:00:17]} 12. Kf2 {[%emt 0:00:00]} Nbd7 {[%emt 0:00:12]} 13. e4 {[%emt 0:00:00]} dxe4 {[%emt 0:00:10]} 14. Nxe4 {[%emt 0:00:00]} Nxe4+ {[%emt 0:00:12]} 15. Bxe4 {[%emt 0:00:00]} c6 {[%emt 0:00:24]} 16. c3 {[%emt 0:00:00]} h6 {[%emt 0:00:06]} 1/2-1/2

[Event "Suryabinayak Municipality Open B 2024"]
[Site "Bhaktapur"]
[Date "2024.12.06"]
[Round "8.3"]
[White "Singh, Suraj"]
[Black "Jaiswal, Rupesh"]
[Result "0-1"]
[ECO "B50"]
[WhiteElo "1655"]
[BlackElo "2062"]
[Annotator "RC"]
[PlyCount "100"]
[EventDate "2024.12.02"]
[EventCountry "NEP"]
[SourceTitle "playchess.com"]
[Source "ChessBase"]
[SourceQuality "1"]
[TimeControl "5400+30"]

1. e4 {[%emt 0:00:40]} c5 {[%emt 0:00:05]} 2. Nf3 {[%emt 0:00:08]} d6 {[%emt 0:00:02]} 3. c3 {[%emt 0:00:18]} Nf6 {[%emt 0:00:30]} 4. Be2 {[%emt 0:00:30]} Bg4 {[%emt 0:00:30]} 5. O-O {[%emt 0:00:30]} e6 {[%emt 0:00:30]} 6. Re1 {[%emt 0:00:30]} Be7 {[%emt 0:00:30]} 7. e5 {[%emt 0:00:30]} dxe5 {[%emt 0:00:30]} 8. Nxe5 {[%emt 0:00:30]} Bxe2 {[%emt 0:00:30]} 9. Qxe2 {[%emt 0:00:30]} O-O {[%emt 0:00:30]} 10. Na3 {[%emt 0:00:30]} Nbd7 {[%emt 0:00:30]} 11. Nxd7 {[%emt 0:00:30]} Qxd7 {[%emt 0:00:30]} 12. d3 {[%emt 0:00:30]} Rfd8 {[%emt 0:00:30]} 13. Rd1 {[%emt 0:09:38]} b5 {[%emt 0:17:24]} 14. Bf4 {[%emt 0:03:29]} Qb7 {[%emt 0:05:46]} 15. Nc2 {[%emt 0:04:03]} Rac8 {[%emt 0:03:17]} 16. Ne1 {[%emt 0:00:36]} Nd5 {[%emt 0:08:30]} 17. Qe4 {[%emt 0:02:44]} Rd7 {[%emt 0:01:42]} 18. Be5 {[%emt 0:02:02]} Rcd8 {[%emt 0:03:49]} 19. Nf3 {[%emt 0:00:53]} f6 {[%emt 0:01:20]} 20. Bg3 {[%emt 0:01:46]} e5 {[%emt 0:00:38]} 21. h4 {[%emt 0:03:24]} Nxc3 {[%emt 0:01:40]} 22. Qxb7 {[%emt 0:04:15]} Ne2+ {[%emt 0:00:17]} 23. Kf1 {[%emt 0:00:08]} Nxg3+ {[%emt 0:00:04]} 24. fxg3 {[%emt 0:00:11]} Rxb7 {[%emt 0:00:03]} 25. h5 {[%emt 0:00:56]} Kf7 {[%emt 0:02:04]} 26. Ke2 {[%emt 0:00:21]} Ke6 {[%emt 0:00:58]} 27. g4 {[%emt 0:00:31]} Rbd7 {[%emt 0:01:35]} 28. b3 {[%emt 0:00:31]} g6 {[%emt 0:02:21]} 29. hxg6 {[%emt 0:00:41]} hxg6 {[%emt 0:00:01]} 30. a4 {[%emt 0:02:40]} b4 {[%emt 0:02:19]} 31. Rac1 {[%emt 0:00:18]} Rh8 {[%emt 0:04:05]} 32. Rh1 {[%emt 0:01:54]} Rdd8 {[%emt 0:00:11]} 33. Rh3 {[%emt 0:00:42]} Rxh3 {[%emt 0:02:39]} 34. gxh3 {[%emt 0:00:08]} Rh8 {[%emt 0:00:11]} 35. Rh1 {[%emt 0:00:11]} f5 {[%emt 0:02:54]} 36. gxf5+ {[%emt 0:01:05]} gxf5 {[%emt 0:00:09]} 37. h4 {[%emt 0:02:25]} Rh5 {[%emt 0:06:45]} 38. Ke3 {[%emt 0:01:55]} Kd5 {[%emt 0:02:38]} 39. Rh2 {[%emt 0:01:34]} Bf6 {[%emt 0:00:58]} 40. Rh1 {[%emt 0:00:42]} Bd8 {[%emt 0:02:05]} 41. Rh2 {[%emt 0:01:32]} Bb6 {[%emt 0:00:51]} 42. Ke2 {[%emt 0:01:01]} e4 {[%emt 0:01:39]} 43. dxe4+ {[%emt 0:01:51]} fxe4 {[%emt 0:00:07]} 44. Ne1 {[%emt 0:03:30]} c4 {[%emt 0:03:17]} 45. bxc4+ {[%emt 0:02:27]} Kxc4 {[%emt 0:00:10]} 46. Rh3 {[%emt 0:05:33]} b3 {[%emt 0:00:33]} 47. Kd1 {[%emt 0:00:42]} Bc5 {[%emt 0:01:51]} 48. Ng2 {[%emt 0:00:15]} Rd5+ {[%emt 0:00:05]} 49. Ke2 {[%emt 0:01:17]} b2 {[%emt 0:00:23]} 50. Rh1 {[%emt 0:00:13]} Kc3 {[%emt 0:00:00]} 0-1

[Event "Suryabinayak Municipality Open B 2024"]
[Site "Bhaktapur"]
[Date "2024.12.06"]
[Round "8.4"]
[White "Rajbhandari, Rijendra"]
[Black "Maharjan, Suroj"]
[Result "1/2-1/2"]
[ECO "E62"]
[WhiteElo "1999"]
[BlackElo "1944"]
[Annotator "RC"]
[PlyCount "36"]
[EventDate "2024.12.02"]
[EventCountry "NEP"]
[SourceTitle "playchess.com"]
[Source "ChessBase"]
[SourceQuality "1"]
[TimeControl "5400+30"]

1. d4 {[%emt 0:00:28]} Nf6 {[%emt 0:02:59]} 2. c4 {[%emt 0:00:15]} d6 {[%emt 0:00:58]} 3. Nc3 {[%emt 0:00:57]} g6 {[%emt 0:00:13]} 4. g3 {[%emt 0:00:18]} Bg7 {[%emt 0:01:27]} 5. Nf3 {[%emt 0:00:22]} O-O {[%emt 0:01:00]} 6. Bg2 {[%emt 0:00:20]} c6 {[%emt 0:02:26]} 7. e4 {[%emt 0:05:41]} c5 {[%emt 0:04:52]} 8. d5 {[%emt 0:01:54]} Bg4 {[%emt 0:05:50]} 9. O-O {[%emt 0:00:42]} Qc8 {[%emt 0:01:10]} 10. Re1 {[%emt 0:05:40]} Nbd7 {[%emt 0:02:56]} 11. h3 {[%emt 0:02:47]} Bxf3 {[%emt 0:00:18]} 12. Qxf3 {[%emt 0:00:08]} a6 {[%emt 0:00:41]} 13. a4 {[%emt 0:00:25]} Rb8 {[%emt 0:01:53]} 14. Qe2 {[%emt 0:00:53]} Ne8 {[%emt 0:03:41]} 15. Bg5 {[%emt 0:06:48]} Nef6 {[%emt 0:02:16]} 16. g4 {[%emt 0:06:14]} h6 {[%emt 0:01:08]} 17. Bh4 {[%emt 0:00:19]} g5 {[%emt 0:02:04]} 18. Bg3 {[%emt 0:00:05]} Ne5 {[%emt 0:01:50]} 1/2-1/2

[Event "Suryabinayak Municipality Open B 2024"]
[Site "Bhaktapur"]
[Date "2024.12.06"]
[Round "8.5"]
[White "Chaulagain, Purusottam"]
[Black "Rai, Dhiren"]
[Result "0-1"]
[ECO "D00"]
[WhiteElo "1974"]
[BlackElo "1800"]
[Annotator "RC"]
[PlyCount "55"]
[EventDate "2024.12.02"]
[EventCountry "NEP"]
[SourceTitle "playchess.com"]
[Source "ChessBase"]
[SourceQuality "1"]
[TimeControl "5400+30"]

1. d4 {[%emt 0:00:22]} d5 {[%emt 0:01:15]} 2. Nc3 {[%emt 0:00:10]} c6 {[%emt 0:00:53]} 3. Bf4 {[%emt 0:00:16]} g6 {[%emt 0:00:56]} 4. e3 {[%emt 0:00:24]} Bg7 {[%emt 0:00:24]} 5. h4 {[%emt 0:00:13]} h5 {[%emt 0:06:48]} 6. Qd2 {[%emt 0:00:31]} Nd7 {[%emt 0:00:22]} 7. Nf3 {[%emt 0:00:06]} Ngf6 {[%emt 0:01:08]} 8. Ne5 {[%emt 0:00:59]} Ng4 {[%emt 0:02:44]} 9. Nxd7 {[%emt 0:07:15]} Bxd7 {[%emt 0:00:45]} 10. f3 {[%emt 0:00:34]} e5 {[%emt 0:04:16]} 11. dxe5 {[%emt 0:13:34]} Nxe5 {[%emt 0:03:59]} 12. O-O-O {[%emt 0:00:04]} Be6 {[%emt 0:07:20]} 13. Qd4 {[%emt 0:03:35]} Qc7 {[%emt 0:02:35]} 14. Kb1 {[%emt 0:06:20]} O-O {[%emt 0:01:06]} 15. Be2 {[%emt 0:09:17]} Rad8 {[%emt 0:00:29]} 16. g4 {[%emt 0:06:38]} c5 {[%emt 0:01:17]} 17. Qd2 {[%emt 0:03:11]} hxg4 {[%emt 0:01:35]} 18. fxg4 {[%emt 0:05:39]} d4 {[%emt 0:01:08]} 19. exd4 {[%emt 0:02:37]} cxd4 {[%emt 0:05:15]} 20. Nb5 {[%emt 0:01:50]} Qb6 {[%emt 0:00:12]} 21. h5 {[%emt 0:03:29]} d3 {[%emt 0:01:23]} 22. hxg6 {[%emt 0:08:20]} Qxb5 {[%emt 0:02:37]} 23. Bxd3 {[%emt 0:08:08]} Nxd3 {[%emt 0:01:19]} 24. cxd3 {[%emt 0:00:08]} Rxd3 {[%emt 0:00:29]} 25. Qh2 {[%emt 0:04:16]} Rxd1+ {[%emt 0:00:23]} 26. Rxd1 {[%emt 0:00:01]} fxg6 {[%emt 0:01:22]} 27. Bc1 {[%emt 0:07:16]} Qa4 {[%emt 0:02:20]} 28. b3 {[%emt 0:09:17]} 0-1

[Event "Suryabinayak Municipality Open B 2024"]
[Site "Bhaktapur"]
[Date "2024.12.06"]
[Round "8.6"]
[White "Acharya, Sushan"]
[Black "Maharjan, Prem Krishna"]
[Result "1/2-1/2"]
[ECO "C28"]
[WhiteElo "1822"]
[BlackElo "1899"]
[Annotator "NA RC"]
[PlyCount "134"]
[EventDate "2024.12.02"]
[EventCountry "NEP"]
[SourceTitle "playchess.com"]
[Source "ChessBase"]
[SourceQuality "1"]
[TimeControl "5400+30"]

1. e4 {[%emt 0:00:25]} e5 {[%emt 0:07:28]} 2. Nc3 {[%emt 0:00:02]} Nc6 {[%emt 0:00:26]} 3. Bc4 {[%emt 0:00:08]} Nf6 {[%emt 0:00:29]} 4. d3 {[%emt 0:00:15]} Bb4 {[%emt 0:01:24]} 5. Nge2 {[%emt 0:00:28]} d5 {[%emt 0:01:48]} 6. exd5 {[%emt 0:00:26]} Nxd5 {[%emt 0:00:10]} 7. O-O {[%emt 0:00:27]} Nxc3 {[%emt 0:00:29]} 8. bxc3 {[%emt 0:00:26] 8.bxc3 is better than 8.Nxc3.} Bd6 {[%emt 0:00:32] C28: Vienna Game: 2...Nf6 3 Bc4 Nc6.} 9. Ng3 {[%emt 0:04:23]} O-O {[%emt 0:00:57]} 10. a4 {[%emt 0:00:41]} Kh8 {[%emt 0:02:36]} 11. f4 $146 {[%emt 0:21:53]} ({Predecessor:} 11. Kh1 f5 12. f4 exf4 13. Bxf4 Bxf4 14. Rxf4 Ne5 15. Bb3 g5 16. Rf1 f4 17. Ne4 {0-1 Lopez del Alamo,A (2275)-Krysa,L (2538) Titled Tuesday intern op 03rd Jan Early blitz 2023 (7)}) 11... Qh4 {[%emt 0:06:39] [#]} (11... f5 $15) 12. Ne4 $1 {[%emt 0:12:36]} Be6 {[%emt 0:18:08] [#]} ({Better is} 12... f5 $14 13. Nxd6 cxd6) 13. Bb3 {[%emt 0:08:28]} ({White should try} 13. f5 $1 $16 Bxc4 14. Bg5 Bc5+ 15. Kh1 (15. Nxc5 $2 {is the wrong capture.} Qxg5 16. Qf3 Qe7 $19) 15... Qxe4 16. dxe4) 13... Bxb3 {[%emt 0:03:12]} 14. cxb3 {[%emt 0:00:33]} f5 {[%emt 0:01:53]} 15. Nxd6 {[%emt 0:01:27]} cxd6 {[%emt 0:00:14]} 16. Ba3 {[%emt 0:02:16]} Rf6 {[%emt 0:00:14]} 17. Qe1 {[%emt 0:06:46]} Qg4 {[%emt 0:01:02]} 18. Qd1 {[%emt 0:00:29]} Qh4 {[%emt 0:00:49]} 19. Qe1 {[%emt 0:01:47]} Qg4 {[%emt 0:00:39]} 20. Ra2 {[%emt 0:08:07]} Re8 {[%emt 0:03:08]} 21. Re2 {[%emt 0:00:44]} Rg6 {[%emt 0:02:23]} 22. b4 {[%emt 0:03:35]} Ree6 {[%emt 0:01:04]} 23. Rff2 {[%emt 0:01:45]} Nd8 {[%emt 0:14:32]} 24. fxe5 {[%emt 0:02:38]} dxe5 {[%emt 0:01:47] [#]} 25. Rxe5 {[%emt 0:00:50]} (25. Re4 $1 $16 {[%cal Re4g4]} f4 (25... Qh3 $2 26. Rxe5 Qg4 27. d4 $18) 26. Rxe5) 25... f4 $2 {[%emt 0:01:55]} (25... Rxe5 $11 {and Black has nothing to worry.} 26. Qxe5 Re6) 26. Rxe6 {[%emt 0:02:59]} Nxe6 {[%emt 0:00:22]} 27. Qe2 {[%emt 0:02:18]} Qh4 {[%emt 0:01:13]} (27... Qf5 $16 {was necessary.} 28. Qe4 Qxe4 29. dxe4 h6) 28. Bc1 {[%emt 0:03:03]} Rf6 {[%emt 0:00:36]} 29. Qf1 {[%emt 0:06:43]} h6 {[%emt 0:02:25]} 30. Kh1 {[%emt 0:01:19]} Qg5 {[%emt 0:02:42]} 31. c4 {[%emt 0:01:29]} Qf5 {[%emt 0:00:34]} 32. d4 {[%emt 0:01:43]} g5 {[%emt 0:01:49]} 33. d5 {[%emt 0:00:18]} Ng7 {[%emt 0:00:01]} 34. Bb2 {[%emt 0:00:26]} Rf7 {[%emt 0:00:06]} 35. Qe1 {[%emt 0:01:58]} Kg8 {[%emt 0:01:02]} 36. Rf1 {[%emt 0:01:11]} Qd3 {[%emt 0:00:20]} 37. Qd1 {[%emt 0:02:49]} Qxc4 {[%emt 0:00:10]} 38. Bxg7 {[%emt 0:00:23]} Rxg7 {[%emt 0:00:32]} 39. Re1 {[%emt 0:00:50]} Qxb4 {[%emt 0:00:40]} 40. h3 {[%emt 0:00:35]} Re7 {[%emt 0:01:47]} 41. Rxe7 {[%emt 0:00:41]} Qxe7 {[%emt 0:00:03]} 42. d6 {[%emt 0:00:11]} Qd7 {[%emt 0:00:23]} 43. Qd5+ {[%emt 0:00:20]} Kf8 {[%emt 0:00:37]} 44. Qe5 {[%emt 0:00:31]} Kf7 {[%emt 0:00:45]} 45. Qd5+ {[%emt 0:00:41]} Kf6 {[%emt 0:00:25]} 46. a5 {[%emt 0:00:32]} a6 {[%emt 0:00:54]} 47. Kg1 {[%emt 0:00:21]} Qc6 {[%emt 0:03:07]} 48. Qd4+ {[%emt 0:00:54]} Ke6 {[%emt 0:00:12]} 49. Qg7 {[%emt 0:00:30]} Qc5+ {[%emt 0:00:33]} 50. Kh1 {[%emt 0:00:27]} Kxd6 {[%emt 0:00:04]} 51. Qxh6+ {[%emt 0:00:17]} Kd7 {[%emt 0:00:42]} 52. Qg7+ {[%emt 0:00:47]} Kc8 {[%emt 0:00:23]} 53. Qg8+ {[%emt 0:00:28]} Kc7 {[%emt 0:00:12]} 54. h4 {[%emt 0:00:39]} gxh4 {[%emt 0:04:30]} 55. Qf7+ {[%emt 0:00:12]} Kc6 {[%emt 0:02:41]} 56. Qe8+ {[%emt 0:00:24]} Kd5 {[%emt 0:01:15]} 57. Qf7+ {[%emt 0:00:24]} Kc6 {[%emt 0:01:49]} 58. Qe8+ {[%emt 0:00:04]} Kc7 {[%emt 0:04:38]} 59. Qf7+ {[%emt 0:00:06]} Kb8 {[%emt 0:00:45]} 60. Qxf4+ {[%emt 0:00:20]} Ka7 {[%emt 0:00:01]} 61. Qd2 $11 {[%emt 0:00:54]} Qe7 {[%emt 0:03:03]} 62. Qd4+ {[%emt 0:00:53]} Kb8 {[%emt 0:00:15]} 63. Qc3 {[%emt 0:00:39]} Qg5 {[%emt 0:00:20]} 64. Qh8+ {[%emt 0:00:26]} Kc7 {[%emt 0:00:32]} 65. Qc3+ {[%emt 0:00:17]} Kb8 {[%emt 0:02:00]} 66. Qh8+ {[%emt 0:00:08]} Ka7 {[%emt 0:00:46]} 67. Qd4+ {[%emt 0:00:10]} Kb8 {[%emt 0:00:04]} 1/2-1/2

[Event "Suryabinayak Municipality Open B 2024"]
[Site "Bhaktapur"]
[Date "2024.12.06"]
[Round "8.7"]
[White "Khadka, Govinda"]
[Black "Tandukar, Nabin"]
[Result "0-1"]
[ECO "B56"]
[WhiteElo "1698"]
[BlackElo "1900"]
[Annotator "RC"]
[PlyCount "90"]
[EventDate "2024.12.02"]
[EventCountry "NEP"]
[SourceTitle "playchess.com"]
[Source "ChessBase"]
[SourceQuality "1"]
[TimeControl "5400+30"]

1. e4 {[%emt 0:00:03]} c5 {[%emt 0:03:54]} 2. Nf3 {[%emt 0:00:07]} Nc6 {[%emt 0:00:06]} 3. d4 {[%emt 0:00:54]} cxd4 {[%emt 0:00:09]} 4. Nxd4 {[%emt 0:00:05]} Nf6 {[%emt 0:00:07]} 5. Nc3 {[%emt 0:00:07]} d6 {[%emt 0:00:08]} 6. Be3 {[%emt 0:02:31]} e5 {[%emt 0:00:28]} 7. Nb3 {[%emt 0:03:24]} Ng4 {[%emt 0:00:07]} 8. Nd5 {[%emt 0:02:20]} Nxe3 {[%emt 0:00:06]} 9. Nxe3 {[%emt 0:01:33]} Be6 {[%emt 0:00:06]} 10. Nd5 {[%emt 0:00:53]} a6 {[%emt 0:00:47]} 11. a4 {[%emt 0:00:09]} Rc8 {[%emt 0:00:31]} 12. Bd3 {[%emt 0:00:14]} Bxd5 {[%emt 0:00:21]} 13. exd5 {[%emt 0:00:25]} Nb4 {[%emt 0:00:08]} 14. Bf5 {[%emt 0:02:07]} Rc5 {[%emt 0:01:18]} 15. Nxc5 {[%emt 0:01:38]} dxc5 {[%emt 0:00:04]} 16. c4 {[%emt 0:00:43]} Bd6 {[%emt 0:00:10]} 17. O-O {[%emt 0:01:42]} O-O {[%emt 0:00:16]} 18. Ra3 {[%emt 0:00:16]} g6 {[%emt 0:00:03]} 19. Bb1 {[%emt 0:04:41]} f5 {[%emt 0:00:05]} 20. Qd2 {[%emt 0:01:28]} Qh4 {[%emt 0:00:12]} 21. Rh3 {[%emt 0:00:08]} Qxc4 {[%emt 0:00:19]} 22. Qh6 {[%emt 0:00:26]} Rf7 {[%emt 0:00:29]} 23. Bxf5 {[%emt 0:00:25]} Bf8 {[%emt 0:01:38]} 24. Qe3 {[%emt 0:14:17]} Rxf5 {[%emt 0:03:59]} 25. Rd1 {[%emt 0:01:48]} Nxd5 {[%emt 0:00:45]} 26. Qd2 {[%emt 0:00:18]} Nf4 {[%emt 0:00:14]} 27. Re3 {[%emt 0:00:58]} Qxa4 {[%emt 0:02:12]} 28. g4 {[%emt 0:00:56]} Rf7 {[%emt 0:01:30]} 29. f3 {[%emt 0:03:36]} Ne6 {[%emt 0:01:03]} 30. h4 {[%emt 0:01:53]} Nd4 {[%emt 0:00:09]} 31. Kg2 {[%emt 0:00:32]} Bd6 {[%emt 0:00:58]} 32. b3 {[%emt 0:01:26]} Qc6 {[%emt 0:00:07]} 33. Rf1 {[%emt 0:01:03]} Rf4 {[%emt 0:00:10]} 34. Kg3 {[%emt 0:01:07]} e4 {[%emt 0:00:18]} 35. Kh3 {[%emt 0:01:22]} exf3 {[%emt 0:00:46]} 36. b4 {[%emt 0:00:23]} h5 {[%emt 0:00:44]} 37. Qa2+ {[%emt 0:00:06]} c4 {[%emt 0:00:36]} 38. b5 {[%emt 0:00:57]} hxg4+ {[%emt 0:00:15]} 39. Kg3 {[%emt 0:00:22]} axb5 {[%emt 0:01:37]} 40. Qb1 {[%emt 0:02:03]} Re4+ {[%emt 0:00:09]} 41. Kf2 {[%emt 0:00:46]} g3+ {[%emt 0:00:03]} 42. Kg1 {[%emt 0:00:20]} f2+ {[%emt 0:00:31]} 43. Rxf2 {[%emt 0:00:20]} gxf2+ {[%emt 0:00:09]} 44. Kxf2 {[%emt 0:00:01]} Rf4+ {[%emt 0:00:27]} 45. Kg1 {[%emt 0:00:22]} Rg4+ {[%emt 0:33:08]} 0-1

[Event "Suryabinayak Municipality Open B 2024"]
[Site "Bhaktapur"]
[Date "2024.12.07"]
[Round "9.2"]
[White "Rai, Dhiren"]
[Black "Silwal, Purushottam"]
[Result "1/2-1/2"]
[ECO "D73"]
[WhiteElo "1800"]
[BlackElo "2058"]
[Annotator "RC"]
[PlyCount "39"]
[EventDate "2024.12.02"]
[EventCountry "NEP"]
[SourceTitle "playchess.com"]
[Source "ChessBase"]
[SourceQuality "1"]
[TimeControl "5400+30"]

1. d4 {[%emt 0:01:43]} Nf6 {[%emt 0:00:16]} 2. c4 {[%emt 0:00:22]} g6 {[%emt 0:00:05]} 3. e3 {[%emt 0:00:17]} Bg7 {[%emt 0:00:07]} 4. Nf3 {[%emt 0:00:12]} O-O {[%emt 0:00:07]} 5. g3 {[%emt 0:00:14]} d5 {[%emt 0:03:32]} 6. cxd5 {[%emt 0:01:20]} Nxd5 {[%emt 0:00:08]} 7. Bg2 {[%emt 0:00:04]} c5 {[%emt 0:04:31]} 8. O-O {[%emt 0:09:42]} cxd4 {[%emt 0:00:42]} 9. Nxd4 {[%emt 0:00:41]} Nc6 {[%emt 0:00:21]} 10. Nxc6 {[%emt 0:02:31]} bxc6 {[%emt 0:00:09]} 11. Qc2 {[%emt 0:02:36]} Qb6 {[%emt 0:09:05]} 12. a3 {[%emt 0:04:21]} Rb8 {[%emt 0:02:05]} 13. Nd2 {[%emt 0:00:20]} Ba6 {[%emt 0:01:49]} 14. Re1 {[%emt 0:01:18]} Rfd8 {[%emt 0:07:00]} 15. Rb1 {[%emt 0:05:19]} e6 {[%emt 0:06:04]} 16. e4 {[%emt 1:07:30]} Nc7 {[%emt 0:28:53]} 17. Nc4 {[%emt 0:00:00]} Qc5 {[%emt 0:05:29]} 18. Bf1 {[%emt 0:00:00]} Nb5 {[%emt 0:01:15]} 19. b4 {[%emt 0:00:00]} Qh5 {[%emt 0:03:14]} 20. Be3 {[%emt 0:00:00]} 1/2-1/2

[Event "Suryabinayak Municipality Open B 2024"]
[Site "Bhaktapur"]
[Date "2024.12.07"]
[Round "9.4"]
[White "Rajbhandari, Rijendra"]
[Black "Lama, Milan"]
[Result "1/2-1/2"]
[ECO "B35"]
[WhiteElo "1999"]
[BlackElo "1997"]
[Annotator "RC"]
[PlyCount "62"]
[EventDate "2024.12.02"]
[EventCountry "NEP"]
[SourceTitle "playchess.com"]
[Source "ChessBase"]
[SourceQuality "1"]
[TimeControl "5400+30"]

1. e4 {[%emt 0:06:35]} c5 {[%emt 0:00:39]} 2. Nf3 {[%emt 0:00:17]} Nc6 {[%emt 0:01:54]} 3. d4 {[%emt 0:01:27]} cxd4 {[%emt 0:03:37]} 4. Nxd4 {[%emt 0:00:52]} g6 {[%emt 0:01:55]} 5. Nc3 {[%emt 0:01:06]} Bg7 {[%emt 0:01:45]} 6. Be3 {[%emt 0:00:06]} Bf8 {[%emt 0:00:28]} 7. Bc1 {[%emt 0:00:07]} Bg7 {[%emt 0:00:10]} 8. Be3 {[%emt 0:00:06]} Nb8 {[%emt 0:01:17]} 9. Nb1 {[%emt 0:00:07]} Nc6 {[%emt 0:00:06]} 10. Nc3 {[%emt 0:00:20]} Nf6 {[%emt 0:00:39]} 11. Bc4 {[%emt 0:01:20]} Ng8 {[%emt 0:00:07]} 12. Be2 {[%emt 0:00:17]} Nf6 {[%emt 0:00:05]} 13. Bc4 {[%emt 0:00:08]} Nb8 {[%emt 0:01:05]} 14. Bb3 {[%emt 0:00:14]} Nc6 {[%emt 0:00:05]} 15. Bc4 {[%emt 0:00:13]} Nb8 {[%emt 0:00:40]} 16. O-O {[%emt 0:02:23]} Nc6 {[%emt 0:00:23]} 17. Be2 {[%emt 0:00:49]} Qa5 {[%emt 0:00:10]} 18. Bc4 {[%emt 0:00:06]} O-O {[%emt 0:00:06]} 19. Nb3 {[%emt 0:03:14]} Qc7 {[%emt 0:05:23]} 20. Bg5 {[%emt 0:02:21]} Qd8 {[%emt 0:17:12]} 21. Be2 {[%emt 0:09:12]} d6 {[%emt 0:06:29]} 22. Qd2 {[%emt 0:08:29]} Bd7 {[%emt 0:09:30]} 23. Rad1 {[%emt 0:04:54]} Re8 {[%emt 0:10:48]} 24. Kh1 {[%emt 0:07:37]} Be6 {[%emt 0:10:31]} 25. f4 {[%emt 0:03:50]} Nd7 {[%emt 0:09:13]} 26. f5 {[%emt 0:02:29]} Bxb3 {[%emt 0:03:10]} 27. axb3 {[%emt 0:01:00]} Nde5 {[%emt 0:03:19]} 28. Nd5 {[%emt 0:02:12]} f6 {[%emt 0:02:22]} 29. Be3 {[%emt 0:01:29]} g5 {[%emt 0:04:00]} 30. b4 {[%emt 0:07:19]} a6 {[%emt 0:01:46]} 31. Bb6 {[%emt 0:02:35]} Qd7 {[%emt 0:00:40]} 1/2-1/2